[Event "Titled Tuesday Blitz May 30 Early 2023"]
[White "Kohler, Aran"]
[Black "Horokoskii"]
[WhiteFideId "1002856"]
[WhiteElo "2324"]
[BlackElo "2123"]
[Result "1-0"]
[Round "09"]
[TimeControl "180+2"]
[Date "2023.05.30"]
[WhiteClock "0:00:36"]
[BlackClock "0:00:04"]

1. d4 {[%clk 0:02:59]}  Nf6 {[%clk 0:02:56]} 2. c3 {[%clk 0:02:59]}  c5 {[%clk 0:02:54]} 3. dxc5 {[%clk 0:02:52]}  g6 {[%clk 0:02:46]} 4. Nd2 {[%clk 0:02:38]}  Bg7 {[%clk 0:02:33]} 5. e4 {[%clk 0:02:37]}  O-O {[%clk 0:02:29]} 6. Bc4 {[%clk 0:02:35]}  a5 {[%clk 0:02:28]} 7. Rb1 {[%clk 0:02:32]}  Nc6 {[%clk 0:02:25]} 8. b4 {[%clk 0:02:31]}  Ne5 {[%clk 0:02:20]} 9. Be2 {[%clk 0:02:15]}  axb4 {[%clk 0:02:18]} 10. cxb4 {[%clk 0:02:15]}  Rxa2 {[%clk 0:02:16]} 11. Qb3 {[%clk 0:02:16]}  Ra8 {[%clk 0:02:07]} 12. f4 {[%clk 0:02:13]}  Nc6 {[%clk 0:02:03]} 13. e5 {[%clk 0:02:10]}  Ne8 {[%clk 0:01:59]} 14. Ngf3 {[%clk 0:02:10]}  b6 {[%clk 0:01:46]} 15. O-O {[%clk 0:01:58]}  bxc5 {[%clk 0:01:43]} 16. bxc5 {[%clk 0:01:58]}  Ba6 {[%clk 0:01:42]} 17. Bxa6 {[%clk 0:01:55]}  Rxa6 {[%clk 0:01:42]} 18. Nc4 {[%clk 0:01:55]}  Nc7 {[%clk 0:01:39]} 19. Be3 {[%clk 0:01:45]}  Nd5 {[%clk 0:01:34]} 20. Rfd1 {[%clk 0:01:37]}  Nxe3 {[%clk 0:01:28]} 21. Qxe3 {[%clk 0:01:37]}  d6 {[%clk 0:01:06]} 22. cxd6 {[%clk 0:01:34]}  exd6 {[%clk 0:01:03]} 23. Rxd6 {[%clk 0:01:30]}  Qc8 {[%clk 0:00:55]} 24. Nb6 {[%clk 0:01:20]}  Qc7 {[%clk 0:00:51]} 25. Nd5 {[%clk 0:01:19]}  Qa5 {[%clk 0:00:25]} 26. Rxc6 {[%clk 0:01:11]}  Rxc6 {[%clk 0:00:20]} 27. Ne7+ {[%clk 0:01:11]}  Kh8 {[%clk 0:00:21]} 28. Nxc6 {[%clk 0:01:12]}  Qa2 {[%clk 0:00:18]} 29. Re1 {[%clk 0:00:59]}  Rc8 {[%clk 0:00:16]} 30. Ncd4 {[%clk 0:00:59]}  Bf8 {[%clk 0:00:15]} 31. e6 {[%clk 0:00:51]}  fxe6 {[%clk 0:00:12]} 32. Qxe6 {[%clk 0:00:51]}  Qxe6 {[%clk 0:00:12]} 33. Nxe6 {[%clk 0:00:49]}  Bh6 {[%clk 0:00:11]} 34. h4 {[%clk 0:00:42]}  Rc4 {[%clk 0:00:09]} 35. g3 {[%clk 0:00:41]}  Rc3 {[%clk 0:00:08]} 36. Kf2 {[%clk 0:00:39]}  Kg8 {[%clk 0:00:04]} 37. Neg5 {[%clk 0:00:36]} 1-0


[Site "https://www.chess.com"]

[Event "Titled Tuesday Blitz May 30 Early 2023"]
[White "Zaichenko, Daria"]
[Black "Blackwhite017"]
[WhiteFideId "4197453"]
[WhiteElo "2039"]
[BlackElo "2112"]
[Result "1-0"]
[Round "09"]
[TimeControl "180+2"]
[Date "2023.05.30"]
[WhiteClock "0:02:34"]
[BlackClock "0:02:39"]

1. e4 {[%clk 0:02:55]}  c5 {[%clk 0:03:00]} 2. Nf3 {[%clk 0:02:55]}  Nc6 {[%clk 0:02:59]} 3. d4 {[%clk 0:02:55]}  cxd4 {[%clk 0:02:59]} 4. Nxd4 {[%clk 0:02:56]}  g6 {[%clk 0:03:00]} 5. Nc3 {[%clk 0:02:56]}  Bg7 {[%clk 0:03:00]} 6. Be3 {[%clk 0:02:52]}  Nf6 {[%clk 0:03:00]} 7. Be2 {[%clk 0:02:43]}  O-O {[%clk 0:02:59]} 8. O-O {[%clk 0:02:43]}  d5 {[%clk 0:03:00]} 9. exd5 {[%clk 0:02:40]}  Nxd5 {[%clk 0:03:01]} 10. Nxc6 {[%clk 0:02:41]}  bxc6 {[%clk 0:03:00]} 11. Nxd5 {[%clk 0:02:40]}  Qxd5 {[%clk 0:02:50]} 12. c3 {[%clk 0:02:36]}  Rd8 {[%clk 0:02:42]} 13. Bf3 {[%clk 0:02:35]}  Qb5 {[%clk 0:02:39]} 14. Qxd8+ {[%clk 0:02:34]} 1-0


[Site "https://www.chess.com"]

[Event "Titled Tuesday Blitz May 30 Early 2023"]
[White "Atanasov, Radislav"]
[Black "Dominguez Rincon, Miller Duvan"]
[WhiteFideId "2901471"]
[BlackFideId "4406583"]
[WhiteElo "2077"]
[BlackElo "2013"]
[Result "1-0"]
[Round "09"]
[TimeControl "180+2"]
[Date "2023.05.30"]
[WhiteClock "0:01:02"]
[BlackClock "0:00:00"]

1. e4 {[%clk 0:03:00]}  e5 {[%clk 0:02:57]} 2. Nf3 {[%clk 0:02:59]}  Nc6 {[%clk 0:02:57]} 3. Bb5 {[%clk 0:02:58]}  a6 {[%clk 0:02:56]} 4. Ba4 {[%clk 0:02:57]}  Nf6 {[%clk 0:02:56]} 5. O-O {[%clk 0:02:54]}  Be7 {[%clk 0:02:54]} 6. Re1 {[%clk 0:02:50]}  b5 {[%clk 0:02:53]} 7. Bb3 {[%clk 0:02:44]}  O-O {[%clk 0:02:53]} 8. a4 {[%clk 0:02:39]}  Rb8 {[%clk 0:02:52]} 9. axb5 {[%clk 0:02:31]}  axb5 {[%clk 0:02:53]} 10. c3 {[%clk 0:02:25]}  d6 {[%clk 0:02:53]} 11. h3 {[%clk 0:02:21]}  h6 {[%clk 0:02:53]} 12. d4 {[%clk 0:02:16]}  Re8 {[%clk 0:02:47]} 13. d5 {[%clk 0:02:10]}  Bb7 {[%clk 0:02:09]} 14. dxc6 {[%clk 0:02:06]}  Bxc6 {[%clk 0:02:10]} 15. Nbd2 {[%clk 0:02:00]}  b4 {[%clk 0:02:10]} 16. Qc2 {[%clk 0:01:54]}  Bf8 {[%clk 0:02:07]} 17. cxb4 {[%clk 0:01:44]}  Rxb4 {[%clk 0:02:08]} 18. Qxc6 {[%clk 0:01:40]}  Rb8 {[%clk 0:02:09]} 19. Qc4 {[%clk 0:01:36]}  Qe7 {[%clk 0:02:02]} 20. Ra7 {[%clk 0:01:31]}  Rec8 {[%clk 0:01:25]} 21. Nh4 {[%clk 0:01:17]}  Qd7 {[%clk 0:00:46]} 22. Ng6 {[%clk 0:01:15]}  d5 {[%clk 0:00:14]} 23. Nxf8 {[%clk 0:01:13]}  dxc4 {[%clk 0:00:08]} 24. Nxd7 {[%clk 0:01:12]}  Nxd7 {[%clk 0:00:09]} 25. Bxc4 {[%clk 0:01:09]}  Nb6 {[%clk 0:00:00]} 26. Ba6 {[%clk 0:01:02]} 1-0


[Site "https://www.chess.com"]

[Event "Titled Tuesday Blitz May 30 Early 2023"]
[White "Brod, Manfred"]
[Black "Levitan, Caleb Levi"]
[WhiteFideId "1602110"]
[BlackFideId "14332620"]
[WhiteElo "2152"]
[BlackElo "1963"]
[Result "0-1"]
[Round "09"]
[TimeControl "180+2"]
[Date "2023.05.30"]
[WhiteClock "0:00:00"]
[BlackClock "0:00:12"]

1. e4 {[%clk 0:03:00]}  e5 {[%clk 0:02:56]} 2. Nf3 {[%clk 0:03:00]}  Nc6 {[%clk 0:02:56]} 3. Bc4 {[%clk 0:02:59]}  Bc5 {[%clk 0:02:53]} 4. c3 {[%clk 0:02:55]}  Nf6 {[%clk 0:02:53]} 5. d4 {[%clk 0:02:54]}  exd4 {[%clk 0:02:51]} 6. e5 {[%clk 0:02:55]}  d5 {[%clk 0:02:51]} 7. Bb5 {[%clk 0:02:53]}  Ne4 {[%clk 0:02:51]} 8. cxd4 {[%clk 0:02:44]}  Bb6 {[%clk 0:02:50]} 9. Nc3 {[%clk 0:02:43]}  Bf5 {[%clk 0:02:34]} 10. Be3 {[%clk 0:02:24]}  O-O {[%clk 0:02:30]} 11. O-O {[%clk 0:02:08]}  h6 {[%clk 0:02:24]} 12. Bxc6 {[%clk 0:01:57]}  bxc6 {[%clk 0:02:22]} 13. a4 {[%clk 0:01:58]}  a5 {[%clk 0:02:11]} 14. Rc1 {[%clk 0:01:57]}  Qd7 {[%clk 0:01:57]} 15. Nd2 {[%clk 0:01:56]}  Nxc3 {[%clk 0:01:49]} 16. Rxc3 {[%clk 0:01:55]}  c5 {[%clk 0:01:20]} 17. Nb3 {[%clk 0:01:24]}  cxd4 {[%clk 0:01:03]} 18. Bxd4 {[%clk 0:01:17]}  Qxa4 {[%clk 0:00:47]} 19. Nc5 {[%clk 0:01:15]}  Qxd1 {[%clk 0:00:41]} 20. Rxd1 {[%clk 0:01:15]}  Rfb8 {[%clk 0:00:19]} 21. Na4 {[%clk 0:01:13]}  Bxd4 {[%clk 0:00:18]} 22. Rxd4 {[%clk 0:01:13]}  Rb4 {[%clk 0:00:18]} 23. Rxd5 {[%clk 0:00:24]}  Rxa4 {[%clk 0:00:18]} 24. f4 {[%clk 0:00:25]}  Rb8 {[%clk 0:00:15]} 25. Rxc7 {[%clk 0:00:25]}  Rxb2 {[%clk 0:00:15]} 26. h3 {[%clk 0:00:24]}  Rxg2+ {[%clk 0:00:12]} 27. Kxg2 {[%clk 0:00:21]}  Be4+ {[%clk 0:00:12]} 28. Kg3 {[%clk 0:00:22]}  Bxd5 {[%clk 0:00:12]} 29. Rc8+ {[%clk 0:00:22]}  Kh7 {[%clk 0:00:12]} 30. Rd8 {[%clk 0:00:23]}  Be6 {[%clk 0:00:12]} 31. f5 {[%clk 0:00:00]}  Bxf5 {[%clk 0:00:12]} 0-1


[Site "https://www.chess.com"]

[Event "Titled Tuesday Blitz May 30 Early 2023"]
[White "Osiecki, Stanislaw"]
[Black "Floresvillar Gonzalez, Luis Migu"]
[WhiteFideId "1102990"]
[BlackFideId "5100542"]
[WhiteElo "2088"]
[BlackElo "2040"]
[Result "1-0"]
[Round "09"]
[TimeControl "180+2"]
[Date "2023.05.30"]
[WhiteClock "0:00:07"]
[BlackClock "0:00:00"]

1. e4 {[%clk 0:03:00]}  c6 {[%clk 0:02:59]} 2. d4 {[%clk 0:02:58]}  d5 {[%clk 0:03:00]} 3. e5 {[%clk 0:02:59]}  Bf5 {[%clk 0:02:59]} 4. Bd3 {[%clk 0:02:59]}  Bxd3 {[%clk 0:02:59]} 5. Qxd3 {[%clk 0:02:59]}  e6 {[%clk 0:02:59]} 6. Ne2 {[%clk 0:02:59]}  c5 {[%clk 0:02:59]} 7. c3 {[%clk 0:03:00]}  Nc6 {[%clk 0:02:59]} 8. O-O {[%clk 0:03:00]}  Qb6 {[%clk 0:02:58]} 9. Rd1 {[%clk 0:03:00]}  cxd4 {[%clk 0:02:55]} 10. cxd4 {[%clk 0:02:59]}  Nge7 {[%clk 0:02:55]} 11. Nbc3 {[%clk 0:02:59]}  a6 {[%clk 0:02:54]} 12. a3 {[%clk 0:02:58]}  Nf5 {[%clk 0:02:53]} 13. Nxd5 {[%clk 0:02:58]}  exd5 {[%clk 0:02:50]} 14. Qxf5 {[%clk 0:02:57]}  Be7 {[%clk 0:02:35]} 15. e6 {[%clk 0:02:54]}  fxe6 {[%clk 0:02:21]} 16. Qxe6 {[%clk 0:02:53]}  Rd8 {[%clk 0:01:59]} 17. Bg5 {[%clk 0:02:23]}  Rd6 {[%clk 0:01:57]} 18. Qe3 {[%clk 0:02:19]}  Qc7 {[%clk 0:01:52]} 19. Bxe7 {[%clk 0:02:16]}  Nxe7 {[%clk 0:01:50]} 20. Nf4 {[%clk 0:02:11]}  Qd7 {[%clk 0:01:37]} 21. Re1 {[%clk 0:02:05]}  Kf7 {[%clk 0:01:35]} 22. Qf3 {[%clk 0:01:55]}  Rf6 {[%clk 0:01:31]} 23. g3 {[%clk 0:01:48]}  Rf8 {[%clk 0:01:30]} 24. Qh5+ {[%clk 0:01:37]}  Kg8 {[%clk 0:01:29]} 25. Rxe7 {[%clk 0:01:28]}  Qxe7 {[%clk 0:01:22]} 26. Nxd5 {[%clk 0:01:28]}  Qf7 {[%clk 0:01:17]} 27. Nxf6+ {[%clk 0:01:27]}  Qxf6 {[%clk 0:01:17]} 28. Qd5+ {[%clk 0:01:24]}  Kh8 {[%clk 0:01:16]} 29. Rf1 {[%clk 0:01:23]}  b5 {[%clk 0:01:14]} 30. Qe5 {[%clk 0:01:21]}  Qf3 {[%clk 0:00:56]} 31. Qe3 {[%clk 0:01:16]}  Qd5 {[%clk 0:00:52]} 32. Rc1 {[%clk 0:01:05]}  h6 {[%clk 0:00:44]} 33. Rc5 {[%clk 0:00:58]}  Qb7 {[%clk 0:00:41]} 34. d5 {[%clk 0:00:56]}  Rd8 {[%clk 0:00:38]} 35. Qe6 {[%clk 0:00:47]}  b4 {[%clk 0:00:34]} 36. d6 {[%clk 0:00:40]}  bxa3 {[%clk 0:00:30]} 37. bxa3 {[%clk 0:00:39]}  Qb1+ {[%clk 0:00:27]} 38. Kg2 {[%clk 0:00:40]}  Qb7+ {[%clk 0:00:27]} 39. Qd5 {[%clk 0:00:39]}  Qxd5+ {[%clk 0:00:22]} 40. Rxd5 {[%clk 0:00:38]}  Kg8 {[%clk 0:00:22]} 41. d7 {[%clk 0:00:35]}  Kf7 {[%clk 0:00:22]} 42. Rd6 {[%clk 0:00:35]}  Ke7 {[%clk 0:00:22]} 43. Rxa6 {[%clk 0:00:31]}  Rxd7 {[%clk 0:00:22]} 44. h4 {[%clk 0:00:28]}  Rd2 {[%clk 0:00:21]} 45. Ra7+ {[%clk 0:00:27]}  Kf6 {[%clk 0:00:20]} 46. a4 {[%clk 0:00:27]}  Ra2 {[%clk 0:00:20]} 47. a5 {[%clk 0:00:27]}  h5 {[%clk 0:00:20]} 48. Kf3 {[%clk 0:00:25]}  Ra3+ {[%clk 0:00:18]} 49. Ke4 {[%clk 0:00:25]}  Ra2 {[%clk 0:00:18]} 50. f3 {[%clk 0:00:25]}  Ra4+ {[%clk 0:00:18]} 51. Ke3 {[%clk 0:00:24]}  Ra3+ {[%clk 0:00:18]} 52. Ke4 {[%clk 0:00:24]}  Ra4+ {[%clk 0:00:18]} 53. Kd5 {[%clk 0:00:22]}  Ra3 {[%clk 0:00:19]} 54. Ra8 {[%clk 0:00:20]}  Kg6 {[%clk 0:00:18]} 55. a6 {[%clk 0:00:19]}  Rxf3 {[%clk 0:00:17]} 56. a7 {[%clk 0:00:19]}  Ra3 {[%clk 0:00:15]} 57. Ke5 {[%clk 0:00:18]}  Ra5+ {[%clk 0:00:13]} 58. Kd6 {[%clk 0:00:18]}  Ra3 {[%clk 0:00:12]} 59. Kc6 {[%clk 0:00:14]}  Ra1 {[%clk 0:00:11]} 60. Kd5 {[%clk 0:00:10]}  Ra5+ {[%clk 0:00:10]} 61. Kc4 {[%clk 0:00:09]}  Ra1 {[%clk 0:00:09]} 62. Kb3 {[%clk 0:00:08]}  Ra6 {[%clk 0:00:08]} 63. Kb4 {[%clk 0:00:08]}  Ra1 {[%clk 0:00:08]} 64. Kb5 {[%clk 0:00:09]}  Rb1+ {[%clk 0:00:07]} 65. Kc6 {[%clk 0:00:09]}  Rc1+ {[%clk 0:00:06]} 66. Kb7 {[%clk 0:00:08]}  Rb1+ {[%clk 0:00:06]} 67. Kc7 {[%clk 0:00:08]}  Rc1+ {[%clk 0:00:06]} 68. Kd7 {[%clk 0:00:08]}  Ra1 {[%clk 0:00:05]} 69. Ke7 {[%clk 0:00:08]}  Re1+ {[%clk 0:00:04]} 70. Kf8 {[%clk 0:00:08]}  Rf1+ {[%clk 0:00:03]} 71. Kg8 {[%clk 0:00:08]}  Ra1 {[%clk 0:00:03]} 72. Rb8 {[%clk 0:00:07]}  Rxa7 {[%clk 0:00:00]} 73. Rb5 {[%clk 0:00:07]} 1-0


[Site "https://www.chess.com"]

[Event "Titled Tuesday Blitz May 30 Early 2023"]
[White "Andrew_Ledger"]
[Black "Ciuffoletti, Paolo"]
[BlackFideId "807630"]
[WhiteElo "2127"]
[BlackElo "2143"]
[Result "0-1"]
[Round "09"]
[TimeControl "180+2"]
[Date "2023.05.30"]
[WhiteClock "0:00:31"]
[BlackClock "0:00:18"]

1. c4 {[%clk 0:03:00]}  g6 {[%clk 0:02:59]} 2. g3 {[%clk 0:03:00]}  Bg7 {[%clk 0:02:59]} 3. Bg2 {[%clk 0:03:01]}  d6 {[%clk 0:02:58]} 4. Nc3 {[%clk 0:03:00]}  e5 {[%clk 0:02:58]} 5. d3 {[%clk 0:03:00]}  f5 {[%clk 0:02:58]} 6. e4 {[%clk 0:03:00]}  Nf6 {[%clk 0:02:56]} 7. Nge2 {[%clk 0:02:59]}  O-O {[%clk 0:02:56]} 8. O-O {[%clk 0:02:59]}  c6 {[%clk 0:02:56]} 9. h3 {[%clk 0:02:53]}  Be6 {[%clk 0:02:55]} 10. Be3 {[%clk 0:02:47]}  fxe4 {[%clk 0:02:49]} 11. dxe4 {[%clk 0:02:43]}  Bxc4 {[%clk 0:02:43]} 12. b3 {[%clk 0:02:43]}  Be6 {[%clk 0:02:40]} 13. Qd2 {[%clk 0:02:43]}  Qd7 {[%clk 0:02:20]} 14. Kh2 {[%clk 0:02:43]}  Na6 {[%clk 0:02:15]} 15. Rad1 {[%clk 0:02:40]}  Rfd8 {[%clk 0:02:04]} 16. f4 {[%clk 0:02:37]}  exf4 {[%clk 0:01:56]} 17. Nxf4 {[%clk 0:02:37]}  Bf7 {[%clk 0:01:53]} 18. Bd4 {[%clk 0:02:35]}  Ne8 {[%clk 0:01:36]} 19. h4 {[%clk 0:02:21]}  Bxd4 {[%clk 0:01:25]} 20. Qxd4 {[%clk 0:02:22]}  Ng7 {[%clk 0:01:24]} 21. Bh3 {[%clk 0:02:19]}  Qe7 {[%clk 0:01:00]} 22. Rf2 {[%clk 0:02:06]}  Ne6 {[%clk 0:00:55]} 23. Bxe6 {[%clk 0:01:49]}  Bxe6 {[%clk 0:00:53]} 24. Re1 {[%clk 0:01:41]}  Bg4 {[%clk 0:00:38]} 25. Ncd5 {[%clk 0:01:15]}  cxd5 {[%clk 0:00:29]} 26. Nxd5 {[%clk 0:01:14]}  Qe5 {[%clk 0:00:29]} 27. Nf6+ {[%clk 0:01:14]}  Kg7 {[%clk 0:00:27]} 28. Qxe5 {[%clk 0:01:14]}  dxe5 {[%clk 0:00:26]} 29. Nxg4 {[%clk 0:01:15]}  Re8 {[%clk 0:00:24]} 30. Rd1 {[%clk 0:01:10]}  Re7 {[%clk 0:00:22]} 31. Rc2 {[%clk 0:01:03]}  b6 {[%clk 0:00:21]} 32. a3 {[%clk 0:00:59]}  Nc5 {[%clk 0:00:21]} 33. b4 {[%clk 0:00:47]}  Nxe4 {[%clk 0:00:20]} 34. Re1 {[%clk 0:00:48]}  Nf6 {[%clk 0:00:20]} 35. Nxe5 {[%clk 0:00:46]}  Rae8 {[%clk 0:00:19]} 36. Rce2 {[%clk 0:00:34]}  Ng4+ {[%clk 0:00:18]} 37. Nxg4 {[%clk 0:00:33]}  Rxe2+ {[%clk 0:00:18]} 38. Rxe2 {[%clk 0:00:33]}  Rxe2+ {[%clk 0:00:18]} 39. Kh3 {[%clk 0:00:31]}  Ra2 {[%clk 0:00:18]} 0-1


[Site "https://www.chess.com"]

[Event "Titled Tuesday Blitz May 30 Early 2023"]
[White "Winkels, Marcel"]
[Black "KSho99"]
[WhiteFideId "1003887"]
[WhiteElo "1900"]
[BlackElo "2167"]
[Result "0-1"]
[Round "09"]
[TimeControl "180+2"]
[Date "2023.05.30"]
[WhiteClock "0:01:30"]
[BlackClock "0:00:26"]

1. e4 {[%clk 0:03:00]}  c6 {[%clk 0:02:59]} 2. d4 {[%clk 0:02:59]}  d5 {[%clk 0:02:59]} 3. f3 {[%clk 0:02:58]}  dxe4 {[%clk 0:02:59]} 4. fxe4 {[%clk 0:02:57]}  e5 {[%clk 0:02:59]} 5. dxe5 {[%clk 0:02:55]}  Qh4+ {[%clk 0:02:58]} 6. Ke2 {[%clk 0:02:44]}  Qxe4+ {[%clk 0:02:54]} 7. Kd2 {[%clk 0:02:39]}  Bc5 {[%clk 0:02:14]} 8. Qe2 {[%clk 0:02:31]}  Qd4+ {[%clk 0:02:00]} 9. Ke1 {[%clk 0:02:27]}  Bg4 {[%clk 0:01:52]} 10. Nf3 {[%clk 0:02:26]}  Bxf3 {[%clk 0:01:48]} 11. gxf3 {[%clk 0:02:22]}  Qh4+ {[%clk 0:01:36]} 12. Kd1 {[%clk 0:02:20]}  Ne7 {[%clk 0:01:25]} 13. c3 {[%clk 0:02:19]}  O-O {[%clk 0:01:13]} 14. Be3 {[%clk 0:02:15]}  Rd8+ {[%clk 0:01:11]} 15. Kc2 {[%clk 0:02:12]}  Bxe3 {[%clk 0:01:03]} 16. Qxe3 {[%clk 0:02:11]}  Nd5 {[%clk 0:01:00]} 17. Qe4 {[%clk 0:01:46]}  Qxe4+ {[%clk 0:00:54]} 18. fxe4 {[%clk 0:01:45]}  Ne3+ {[%clk 0:00:53]} 19. Kb3 {[%clk 0:01:42]}  Nd7 {[%clk 0:00:41]} 20. Na3 {[%clk 0:01:34]}  Nc5+ {[%clk 0:00:39]} 21. Kb4 {[%clk 0:01:31]}  b6 {[%clk 0:00:28]} 22. Nc4 {[%clk 0:01:30]}  Nc2# {[%clk 0:00:26]} 0-1


[Site "https://www.chess.com"]

[Event "Titled Tuesday Blitz May 30 Early 2023"]
[White "Sanchez, Robert"]
[Black "Lakshmi C"]
[WhiteFideId "2034360"]
[BlackFideId "25035347"]
[WhiteElo "1820"]
[BlackElo "1942"]
[Result "0-1"]
[Round "09"]
[TimeControl "180+2"]
[Date "2023.05.30"]
[WhiteClock "0:00:16"]
[BlackClock "0:00:11"]

1. e4 {[%clk 0:03:00]}  b6 {[%clk 0:02:55]} 2. Nf3 {[%clk 0:02:59]}  Bb7 {[%clk 0:02:55]} 3. Bc4 {[%clk 0:02:59]}  e6 {[%clk 0:02:55]} 4. Nc3 {[%clk 0:03:00]}  Ne7 {[%clk 0:02:53]} 5. O-O {[%clk 0:02:59]}  d5 {[%clk 0:02:54]} 6. exd5 {[%clk 0:02:59]}  exd5 {[%clk 0:02:54]} 7. Bb5+ {[%clk 0:02:59]}  c6 {[%clk 0:02:54]} 8. Be2 {[%clk 0:02:59]}  g6 {[%clk 0:02:54]} 9. d4 {[%clk 0:02:58]}  Bg7 {[%clk 0:02:54]} 10. Bg5 {[%clk 0:02:58]}  O-O {[%clk 0:02:54]} 11. Re1 {[%clk 0:02:58]}  f6 {[%clk 0:02:50]} 12. Bf4 {[%clk 0:02:57]}  Nf5 {[%clk 0:02:47]} 13. Bd3 {[%clk 0:02:55]}  Bc8 {[%clk 0:02:46]} 14. a4 {[%clk 0:02:51]}  Na6 {[%clk 0:02:46]} 15. Na2 {[%clk 0:02:36]}  Nd6 {[%clk 0:02:26]} 16. h3 {[%clk 0:02:26]}  Kh8 {[%clk 0:02:16]} 17. Qe2 {[%clk 0:02:19]}  Re8 {[%clk 0:02:09]} 18. Qf1 {[%clk 0:02:13]}  Nc7 {[%clk 0:02:03]} 19. Rxe8+ {[%clk 0:02:10]}  Ndxe8 {[%clk 0:01:58]} 20. Re1 {[%clk 0:02:10]}  Ne6 {[%clk 0:01:57]} 21. Bd2 {[%clk 0:02:06]}  c5 {[%clk 0:01:56]} 22. c4 {[%clk 0:01:55]}  dxc4 {[%clk 0:01:28]} 23. Bxc4 {[%clk 0:01:53]}  N8c7 {[%clk 0:01:28]} 24. dxc5 {[%clk 0:01:48]}  Nxc5 {[%clk 0:01:25]} 25. Bf4 {[%clk 0:01:39]}  N7e6 {[%clk 0:01:22]} 26. Rd1 {[%clk 0:01:35]}  Qe8 {[%clk 0:01:18]} 27. Bd6 {[%clk 0:01:22]}  Bb7 {[%clk 0:01:02]} 28. Nd4 {[%clk 0:01:07]}  Nxd4 {[%clk 0:00:56]} 29. Rxd4 {[%clk 0:01:07]}  f5 {[%clk 0:00:56]} 30. Bb5 {[%clk 0:00:56]}  Qe6 {[%clk 0:00:54]} 31. Bxc5 {[%clk 0:00:55]}  bxc5 {[%clk 0:00:51]} 32. Rd7 {[%clk 0:00:56]}  Qxa2 {[%clk 0:00:50]} 33. Rxb7 {[%clk 0:00:56]}  Rd8 {[%clk 0:00:30]} 34. Qe2 {[%clk 0:00:40]}  Qa1+ {[%clk 0:00:27]} 35. Kh2 {[%clk 0:00:39]}  Qxb2 {[%clk 0:00:20]} 36. Qxb2 {[%clk 0:00:39]}  Bxb2 {[%clk 0:00:19]} 37. Rxa7 {[%clk 0:00:39]}  Be5+ {[%clk 0:00:19]} 38. g3 {[%clk 0:00:39]}  Rd2 {[%clk 0:00:19]} 39. Kg2 {[%clk 0:00:37]}  Bd4 {[%clk 0:00:18]} 40. g4 {[%clk 0:00:30]}  Rxf2+ {[%clk 0:00:18]} 41. Kg3 {[%clk 0:00:28]}  f4+ {[%clk 0:00:16]} 42. Kh4 {[%clk 0:00:28]}  h6 {[%clk 0:00:14]} 43. g5 {[%clk 0:00:28]}  Rg2 {[%clk 0:00:12]} 44. Ra8+ {[%clk 0:00:20]}  Kg7 {[%clk 0:00:12]} 45. Ra7+ {[%clk 0:00:21]}  Kf8 {[%clk 0:00:11]} 46. gxh6 {[%clk 0:00:16]}  Bf2# {[%clk 0:00:11]} 0-1


[Site "https://www.chess.com"]

[Event "Titled Tuesday Blitz May 30 Early 2023"]
[White "dDobravcan"]
[Black "Kiseljova, Marya"]
[BlackFideId "4155009"]
[WhiteElo "2097"]
[BlackElo "1831"]
[Result "1-0"]
[Round "09"]
[TimeControl "180+2"]
[Date "2023.05.30"]
[WhiteClock "0:00:01"]
[BlackClock "0:00:03"]

1. e4 {[%clk 0:03:00]}  c5 {[%clk 0:02:59]} 2. b4 {[%clk 0:03:00]}  d5 {[%clk 0:02:57]} 3. exd5 {[%clk 0:02:57]}  Qxd5 {[%clk 0:02:57]} 4. bxc5 {[%clk 0:02:51]}  Qe5+ {[%clk 0:02:55]} 5. Be2 {[%clk 0:02:49]}  Qxa1 {[%clk 0:02:54]} 6. Nc3 {[%clk 0:02:44]}  e6 {[%clk 0:02:12]} 7. Bc4 {[%clk 0:02:25]}  Bxc5 {[%clk 0:02:08]} 8. Nge2 {[%clk 0:02:25]}  Nc6 {[%clk 0:01:56]} 9. O-O {[%clk 0:02:19]}  a6 {[%clk 0:01:46]} 10. d4 {[%clk 0:02:11]}  Bb4 {[%clk 0:01:44]} 11. Qd3 {[%clk 0:02:11]}  Bxc3 {[%clk 0:01:38]} 12. Nxc3 {[%clk 0:02:05]}  Nb4 {[%clk 0:01:36]} 13. Qd2 {[%clk 0:01:38]}  b5 {[%clk 0:01:30]} 14. Bb3 {[%clk 0:01:29]}  Nf6 {[%clk 0:01:06]} 15. Ba3 {[%clk 0:01:27]}  Qxf1+ {[%clk 0:01:05]} 16. Kxf1 {[%clk 0:01:27]}  Nc6 {[%clk 0:01:02]} 17. d5 {[%clk 0:01:22]}  b4 {[%clk 0:00:57]} 18. dxc6 {[%clk 0:01:09]}  bxa3 {[%clk 0:00:55]} 19. Qd6 {[%clk 0:01:05]}  h5 {[%clk 0:00:42]} 20. c7 {[%clk 0:01:00]}  Nd7 {[%clk 0:00:37]} 21. Ne4 {[%clk 0:00:32]}  Rh6 {[%clk 0:00:28]} 22. Ba4 {[%clk 0:00:23]}  e5 {[%clk 0:00:16]} 23. Qxe5+ {[%clk 0:00:17]}  Re6 {[%clk 0:00:17]} 24. Qd5 {[%clk 0:00:17]}  Ra7 {[%clk 0:00:15]} 25. Nd6+ {[%clk 0:00:17]}  Kf8 {[%clk 0:00:14]} 26. Nxc8 {[%clk 0:00:16]}  Rxc7 {[%clk 0:00:14]} 27. Bxd7 {[%clk 0:00:15]}  Rxc2 {[%clk 0:00:08]} 28. Bxe6 {[%clk 0:00:12]}  fxe6 {[%clk 0:00:08]} 29. Qxe6 {[%clk 0:00:10]}  Rb2 {[%clk 0:00:09]} 30. Qe7+ {[%clk 0:00:08]}  Kg8 {[%clk 0:00:09]} 31. Nd6 {[%clk 0:00:08]}  Kh7 {[%clk 0:00:06]} 32. Qe4+ {[%clk 0:00:06]}  Kg8 {[%clk 0:00:04]} 33. h4 {[%clk 0:00:05]}  a5 {[%clk 0:00:02]} 34. Nf5 {[%clk 0:00:05]}  Kh7 {[%clk 0:00:02]} 35. Qe7 {[%clk 0:00:03]}  Rb1+ {[%clk 0:00:03]} 36. Ke2 {[%clk 0:00:03]}  Rb2+ {[%clk 0:00:04]} 37. Kf3 {[%clk 0:00:03]}  Kg6 {[%clk 0:00:04]} 38. Qe6+ {[%clk 0:00:02]}  Kh7 {[%clk 0:00:04]} 39. Qf7 {[%clk 0:00:02]}  Rxf2+ {[%clk 0:00:02]} 40. Kxf2 {[%clk 0:00:02]}  Kh8 {[%clk 0:00:03]} 41. Qxg7# {[%clk 0:00:01]} 1-0


[Site "https://www.chess.com"]